bitfinex-derivatives/quotes_BNBF0:USTF0_20250126
["timestamp","ask_amount","ask_price","bid_price","bid_amount"]
[1737932716885,0.92652088,670.96,669.88,0.27398003]
[1737932717077,0.92652088,670.96,669.76,0.29861442]
[1737932717078,0.92652088,670.96,669.89,0.27398003]
[1737932717281,0.92652088,670.96,669.9,0.27398003]
[1737932717484,0.92652088,670.95,669.91,0.27398003]
[1737932717686,0.92652088,670.95,669.92,0.27398003]
[1737932717885,2.40698642,670.94,669.93,0.27398003]
[1737932718087,2.40698642,670.94,669.94,0.27396738]
[1737932718385,2.40698642,670.94,669.95,0.27396738]
[1737932718683,2.40698642,670.93,669.96,0.27396738]
[1737932718881,2.40698642,670.92,669.77,0.27396738]
[1737932719081,2.40698642,670.92,669.78,0.27396738]
[1737932719282,2.40698642,670.92,669.79,0.27396738]
[1737932719486,2.40698642,670.91,669.8,0.27396738]
[1737932719685,2.40698642,670.91,669.81,0.27396738]
[1737932719885,2.40698642,670.91,669.77,0.27396738]
[1737932720080,2.40698642,670.9,669.78,0.27396738]
[1737932720280,2.40698642,670.9,669.77,0.27396738]
[1737932720479,2.40698642,670.9,669.76,0.29861442]
[1737932720480,2.40698642,670.89,669.78,0.27396738]
[1737932720785,2.40698642,670.89,669.76,0.29861442]
[1737932720786,2.40698642,670.89,669.79,0.27396738]
[1737932720985,2.40698642,670.89,669.8,0.27396738]
[1737932721185,2.40698642,670.88,669.77,0.27396738]
[1737932721386,2.40698642,670.88,669.78,0.27396738]
[1737932721586,2.40698642,670.88,669.79,0.27396738]
[1737932721788,2.40698642,670.88,669.8,0.27396738]
[1737932721988,2.40698642,670.87,669.77,0.27396738]
[1737932722189,2.40698642,670.87,669.78,0.27396738]
[1737932722381,2.40698642,670.87,669.77,0.27396738]
[1737932722585,2.40698642,670.87,669.78,0.27396738]
[1737932722886,2.40698642,670.86,669.79,0.27396738]
[1737932723086,2.40698642,670.86,669.8,0.27396738]
[1737932723288,0.29806703,670.99,669.81,0.27396738]
[1737932723289,2.40698642,670.85,669.81,0.27396738]
[1737932723682,2.40698642,670.85,669.82,0.27396738]
[1737932723882,2.40698642,670.84,669.83,0.27396738]
[1737932724187,2.40698642,670.84,669.84,0.27396738]
[1737932724387,0.92652088,670.83,668.94,0.27396738]
[1737932724581,0.92652088,670.83,668.95,1.0015772]
[1737932724781,0.92652088,670.83,668.96,1.0015772]
[1737932724982,0.92652088,670.82,668.97,0.27396738]
[1737932725288,0.92652088,670.82,668.99,0.29895813]
[1737932725489,0.92652088,670.81,668.99,0.29895813]
[1737932725987,0.29806703,670.99,668.99,0.29895813]
[1737932725988,0.92652088,670.8,668.99,0.29895813]
[1737932726587,0.92652088,670.79,668.99,0.29895813]
[1737932726789,0.92652088,670.79,669.09,1.11174428]
[1737932727087,0.29806703,670.99,669.11,0.29890451]
[1737932727782,0.92419276,670.98,669.12,0.27396738]
[1737932727982,0.92419276,670.98,669.14,0.29889111]
[1737932728187,0.92419276,670.98,669.15,0.27396738]
[1737932728381,0.92419276,670.98,669.16,0.27396738]
[1737932728586,0.92419276,670.97,669.17,1.0015772]
[1737932728788,0.92419276,670.97,669.18,1.0015772]
[1737932728989,0.92419276,670.97,669.19,1.0015772]
[1737932729192,0.92419276,670.97,669.2,1.0015772]
[1737932729389,0.29806703,670.99,669.21,1.0015772]
[1737932729592,1.08678414,671.84,669.22,1.0015772]
[1737932729789,0.29769878,671.82,669.23,1.0015772]
[1737932729985,0.29769878,671.82,669.24,1.0015772]
[1737932730189,0.29769878,671.82,669.19,1.11174428]
[1737932730190,2.4019047,671.81,669.36,0.29879287]
[1737932730390,2.4019047,671.81,669.37,0.27396738]
[1737932730589,2.4019047,671.81,669.38,0.27396738]
[1737932730785,2.4019047,671.8,669.39,0.27396738]
[1737932730985,2.4019047,671.8,669.4,0.27396738]
[1737932731192,2.4019047,671.79,669.41,0.27396738]
[1737932731392,2.4019047,671.79,669.42,0.27396738]
[1737932731592,2.4019047,671.79,669.43,0.27396738]
[1737932731789,2.4019047,671.79,669.44,0.27396738]
[1737932732095,0.29772094,671.77,669.54,0.29871254]
[1737932732390,0.29772094,671.77,669.55,0.27396738]
[1737932732596,0.29772094,671.77,669.57,0.29869916]
[1737932732793,2.4019047,671.76,669.57,0.29869916]
[1737932732990,0.2977697,671.66,669.58,0.27396738]
[1737932733194,0.2977697,671.66,669.6,0.29868578]
[1737932733387,0.2977697,671.66,669.61,0.27396738]
[1737932733588,2.4019047,671.65,669.62,0.57264424]
[1737932733791,2.4019047,671.65,669.63,0.57263978]
[1737932733991,2.4019047,671.65,669.64,0.57263532]
[1737932734191,0.29781847,671.55,669.65,0.57263086]
[1737932734391,0.29781847,671.55,669.66,0.5726264]
[1737932734589,2.4019047,671.54,669.67,0.57262194]
[1737932734894,0.29783178,671.52,669.68,0.57261748]
[1737932735090,0.29783178,671.52,669.69,0.57261302]
[1737932735395,2.4019047,671.51,669.7,0.57260856]
[1737932735694,2.4019047,671.51,669.71,0.27396738]
[1737932735890,2.4019047,671.5,669.72,0.57259964]
[1737932736090,0.29784952,671.48,669.73,0.57259518]
[1737932736291,0.29784952,671.48,669.73,0.2986278]
[1737932736488,0.29784952,671.48,669.74,0.57256724]
[1737932736692,2.4019047,671.47,669.75,0.2739439]
[1737932736890,2.4019047,671.47,669.76,0.2739439]
[1737932736891,0.29786283,671.45,669.76,0.2739439]
[1737932737102,0.29786283,671.45,669.77,0.2739439]
[1737932737291,3.95891685,671.44,669.78,0.2739439]
[1737932737490,0.29787614,671.42,669.79,0.2739439]
[1737932737795,2.4019047,671.41,669.8,0.2739439]
[1737932737994,0.29788945,671.39,669.81,0.2739439]
[1737932738189,0.29788945,671.39,669.82,0.2739439]
[1737932738393,0.29788945,671.39,669.83,0.2739439]
[1737932738696,2.4019047,671.38,669.74,0.29862334]
[1737932738995,0.29790276,671.36,669.75,0.27397383]
[1737932739198,0.29790276,671.36,669.76,0.27397383]
[1737932739392,2.4019047,671.35,669.77,0.27397383]
[1737932739592,0.29791607,671.33,669.78,0.27397383]
[1737932739790,0.29791607,671.33,669.79,0.27397383]
[1737932739990,0.29791607,671.33,669.8,0.27397383]
[1737932740194,0.29791607,671.33,669.81,0.27397383]
[1737932740495,2.4019047,671.32,669.82,0.27397383]
[1737932740694,0.29792939,671.3,669.83,0.27397383]
[1737932740892,0.29792939,671.3,669.84,0.27397383]
[1737932741096,2.4019047,671.29,669.85,0.27397383]
[1737932741290,0.2979427,671.27,669.75,0.27397383]
[1737932741596,2.4019047,671.26,669.76,0.27397383]
[1737932741789,2.4019047,671.26,669.77,0.27397383]
[1737932741994,2.4019047,671.26,669.78,0.27397383]
[1737932742295,2.4019047,671.25,669.79,0.27397383]
[1737932742495,0.29796046,671.23,669.75,0.27397383]
[1737932742696,0.29796046,671.23,669.76,0.27397383]
[1737932742899,2.4019047,671.22,669.77,0.27397383]
[1737932743097,2.4019047,671.22,669.74,0.29862334]
[1737932743098,0.29797377,671.2,669.78,0.27397383]
[1737932743297,0.29797377,671.2,669.79,0.27397383]
[1737932743497,2.4019047,671.19,669.8,0.27397383]
[1737932743798,0.29798709,671.17,669.81,0.27402421]
[1737932744101,0.29798709,671.17,669.82,0.27402421]
[1737932744292,2.4019047,671.16,669.75,0.27402421]
[1737932744491,2.4019047,671.16,669.74,0.29862334]
[1737932744492,0.29800041,671.14,669.76,0.27402421]
[1737932744694,0.29800041,671.14,669.77,0.27402421]
[1737932744891,2.4019047,671.13,669.75,0.27402421]
[1737932745100,2.4019047,671.13,669.76,0.27402421]
[1737932745298,2.4019047,671.13,669.75,0.27402421]
[1737932745497,0.29801373,671.11,669.77,0.27402421]
[1737932746095,2.4019047,671.1,669.76,0.27402421]
[1737932746397,0.29802261,671.09,669.77,0.27402421]
[1737932746599,0.29802261,671.09,669.78,0.27402421]
[1737932746900,2.4019047,671.08,669.79,0.27402421]
[1737932747098,2.4019047,671.08,669.75,0.27402421]
[1737932747293,2.4019047,671.07,669.76,0.27402421]
[1737932747493,2.4019047,671.07,669.77,0.27402421]
[1737932747694,2.4019047,671.07,669.78,0.27396491]
[1737932747898,2.4019047,671.06,669.79,0.27396491]
[1737932748102,2.4019047,671.06,669.75,0.27396491]
[1737932748300,2.4019047,671.06,669.76,0.27396491]
[1737932748596,2.4019047,671.06,669.77,0.27396491]
[1737932748800,2.4019047,671.06,669.78,0.27396491]
[1737932749096,2.4019047,671.05,669.75,0.27396491]
[1737932749295,2.4019047,671.05,669.76,0.27396491]
[1737932749501,2.4019047,671.05,669.77,0.27396491]
[1737932749700,2.4019047,671.04,669.78,0.27401755]
[1737932749898,2.4019047,671.04,669.74,0.29862334]
[1737932749899,2.4019047,671.04,669.79,0.27401755]
[1737932750103,2.4019047,671.04,669.8,0.27401755]
[1737932750303,2.4019047,671.03,669.81,0.27401755]
[1737932750504,0.2980537,671.02,669.82,0.27401755]
[1737932750802,0.2980537,671.02,669.83,0.27401755]
[1737932750998,2.4019047,671.01,669.75,0.27401755]
[1737932751200,0.29806703,670.99,669.76,0.27401755]
[1737932751400,2.4019047,670.98,669.75,0.27401755]
[1737932751801,0.29807591,670.97,669.75,0.27401755]
[1737932752298,2.4019047,670.96,669.75,0.27401755]
[1737932752505,0.2980848,670.95,669.75,0.27401755]
[1737932752699,2.4019047,670.94,669.75,0.27401755]
[1737932752897,0.29809369,670.93,669.75,0.27401755]
[1737932753304,2.4019047,670.92,669.75,0.27401755]
[1737932753504,0.29810257,670.91,669.75,0.27401755]
[1737932757103,2.4019047,670.9,669.75,0.27401755]
[1737932757306,0.29811146,670.89,669.75,0.27401755]
[1737932757506,2.4019047,670.88,669.75,0.27401755]
[1737932757707,0.29812035,670.87,669.76,0.27404113]
[1737932757909,0.29812035,670.87,669.77,0.27404113]
[1737932758105,2.4019047,670.86,669.75,0.27404113]
[1737932758306,0.29812923,670.85,669.75,0.27404113]
[1737932759310,2.4019047,670.84,669.75,0.27404113]
[1737932759507,0.29813812,670.83,669.75,0.27404113]
[1737932760310,2.4019047,670.82,669.76,0.27403857]
[1737932760510,2.4019047,670.82,669.75,0.27403857]
[1737932760713,2.4019047,670.82,669.76,0.27403857]
[1737932761006,2.4019047,670.81,669.77,0.27403857]
[1737932761207,2.4019047,670.81,669.78,0.27403664]
[1737932761510,2.4019047,670.81,669.79,0.27403664]
[1737932761711,2.4019047,670.8,669.75,0.27403664]
[1737932761906,2.4019047,670.8,669.74,0.29862334]
[1737932761907,2.4019047,670.8,669.76,0.27403664]
[1737932762107,2.4019047,670.79,669.75,0.27403664]
[1737932762310,2.4019047,670.79,669.76,0.27403664]
[1737932762510,2.4019047,670.78,669.75,0.27403664]
[1737932762712,2.4019047,670.78,669.76,0.27403664]
[1737932762907,2.4019047,670.78,669.77,0.27403664]
[1737932763107,2.4019047,670.77,669.75,0.27403664]
[1737932763412,2.4019047,670.77,669.74,0.29862334]
[1737932763613,2.4019047,670.76,669.75,0.27404124]
[1737932764809,2.4019047,670.75,669.75,0.27404124]
[1737932765915,2.4019047,670.74,669.75,0.27404124]
[1737932766415,2.4019047,670.73,669.75,0.27404124]
[1737932766808,2.4019047,670.72,669.75,0.27404124]
[1737932767312,2.4019047,670.71,669.75,0.27404124]
[1737932767915,2.4019047,670.7,669.75,0.27404124]
[1737932768417,2.4019047,670.69,669.76,0.27404124]
[1737932768616,2.4019047,670.69,669.77,0.27404124]
[1737932769013,2.4019047,670.68,669.78,0.27404124]
[1737932769216,2.4019047,670.68,669.37,0.27404124]
[1737932769414,2.4019047,670.68,669.38,0.27404124]
[1737932769717,2.4019047,670.67,669.39,0.27404124]
[1737932769911,0.29821369,670.66,669.4,0.27404124]
[1737932770109,0.29821369,670.66,669.41,0.27404124]
[1737932770317,2.4019047,670.65,669.42,0.27404124]
[1737932770518,0.29822259,670.64,669.37,0.27404124]
[1737932770716,0.29822259,670.64,669.38,0.27404124]
[1737932770909,0.29822259,670.64,669.36,1.11174428]
[1737932771115,0.29822259,670.64,669.37,0.27412006]
[1737932771411,2.4019047,670.63,669.38,0.27412006]
[1737932771617,2.4019047,670.63,669.39,0.27412006]
[1737932771818,2.4019047,670.62,669.4,0.27411757]
[1737932772014,2.4019047,670.62,669.41,0.27411757]
[1737932772015,0.29823593,670.61,669.41,0.27411757]
[1737932772613,2.4019047,670.6,669.41,0.27411757]
[1737932772816,0.29824482,670.59,669.41,0.27411757]
[1737932773017,0.29824482,670.59,669.42,0.27411757]
[1737932773218,2.4019047,670.58,669.37,0.27411757]
[1737932773421,0.29825372,670.57,669.38,0.27411757]
[1737932773614,2.70015842,670.57,669.38,0.27411757]
[1737932773814,2.70015842,670.57,669.39,0.27411757]
[1737932774014,2.70015842,670.57,669.4,0.27411757]
[1737932774215,2.4019047,670.56,669.37,0.27411757]
[1737932774416,0.29826262,670.55,669.38,0.27411757]
[1737932774614,2.70016732,670.55,669.37,0.27411757]
[1737932774818,2.70016732,670.55,669.38,0.27411757]
[1737932775121,0.29826706,670.54,669.39,0.27411757]
[1737932775314,0.29826706,670.54,669.37,0.27411757]
[1737932775519,2.4019047,670.53,669.37,0.27411757]
[1737932775720,0.29827596,670.52,669.37,0.27411757]
[1737932776222,0.29827596,670.52,669.38,0.27421426]
[1737932776416,0.29827596,670.52,669.36,1.11174428]
[1737932776417,1.4780952,670.51,669.37,0.27421426]
[1737932776625,2.4019047,670.51,669.38,0.27421426]
[1737932776817,2.4019047,670.51,669.37,0.27421426]
[1737932777017,2.4019047,670.51,669.38,0.27421426]
[1737932777324,2.4019047,670.5,669.39,0.27421426]
[1737932777622,2.4019047,670.5,669.4,0.27421426]
[1737932777816,2.4019047,670.5,669.41,0.27421426]
[1737932778020,2.4019047,670.49,669.42,0.27422097]
[1737932778222,2.4019047,670.49,669.43,0.27422097]
[1737932778422,2.4019047,670.48,669.44,0.27422097]
[1737932778622,2.4019047,670.48,669.37,0.27422097]
[1737932778823,2.4019047,670.48,669.38,0.27422097]
[1737932779023,2.4019047,670.47,669.38,0.27422097]
[1737932779417,2.4019047,670.46,669.38,0.27422097]
[1737932779819,2.4019047,670.46,669.37,0.27422097]
[1737932780024,2.4019047,670.45,669.37,0.27422097]
[1737932780725,2.4019047,670.44,669.37,0.27422097]
[1737932781220,2.4019047,670.43,669.37,0.27422097]
[1737932781616,2.4019047,670.42,669.37,0.27422097]
[1737932782225,2.4019047,670.41,669.37,0.27422097]
[1737932782823,2.4019047,670.41,669.38,0.27422097]
[1737932783022,2.4019047,670.41,669.39,0.27422097]
[1737932783227,2.4019047,670.4,669.4,0.27422097]
[1737932783427,2.4019047,670.4,669.41,0.27422097]
[1737932783626,2.4019047,670.39,669.42,0.27422097]
[1737932783821,2.4019047,670.39,669.43,0.27422097]
[1737932784221,2.4019047,670.39,669.44,0.27422097]
[1737932784424,2.4019047,670.38,669.37,0.27422097]
[1737932784619,2.4019047,670.38,669.38,0.27422097]
[1737932784820,2.4019047,670.37,669.39,0.27422097]
[1737932785129,2.4019047,670.36,669.4,0.27422097]
[1737932785326,2.4019047,670.36,669.41,0.27422097]
[1737932785526,2.4019047,670.36,669.37,0.27422097]
[1737932785727,2.4019047,670.35,669.37,0.27422097]
[1737932786429,2.4019047,670.34,669.37,0.27422097]
[1737932786729,2.4019047,670.34,669.38,0.27422097]
[1737932786922,2.4019047,670.34,669.39,0.27422097]
[1737932787127,2.4019047,670.33,669.37,0.27422097]
[1737932787422,2.4019047,670.33,669.4,0.27422097]
[1737932787629,2.4019047,670.33,669.41,0.27422097]
[1737932787827,0.9238095,670.32,669.37,0.27422097]
[1737932788024,0.9238095,670.32,669.38,0.27422097]
[1737932788223,0.9238095,670.32,669.37,0.27422097]
[1737932788423,0.9238095,670.32,669.38,0.27422097]
[1737932788627,0.9238095,670.32,669.37,0.27422097]
[1737932788929,0.9238095,670.31,669.38,0.27422097]
[1737932789228,0.9238095,670.31,669.39,0.27422097]
[1737932789431,0.9238095,670.3,669.37,0.27422097]
[1737932789923,0.9238095,670.29,669.37,0.27422097]
[1737932790330,0.9238095,670.29,669.36,1.11174428]
[1737932790629,2.39998089,670.28,669.37,0.27419978]
[1737932791026,2.39998089,670.27,669.37,0.27419978]
[1737932791529,2.39998089,670.26,669.37,0.27419978]
[1737932792024,2.39998089,670.25,669.37,0.27419978]
[1737932792629,2.39998089,670.24,669.37,0.27419978]
[1737932793528,0.9238095,670.23,669.37,0.27419978]
[1737932793928,2.39998089,670.22,669.37,0.27419978]
[1737932794830,0.9238095,670.21,669.37,0.27419978]
[1737932795524,2.39998089,670.2,669.37,0.27419978]
[1737932796128,0.9238095,670.19,669.37,0.27419978]
[1737932796729,2.39998089,670.18,669.37,0.27419978]
[1737932797131,0.9238095,670.17,669.37,0.27419978]
[1737932797633,0.9238095,670.16,669.37,0.27419978]
[1737932798231,0.9238095,670.15,669.37,0.27419978]
[1737932798834,0.9238095,670.14,669.37,0.27419978]
[1737932799331,0.9238095,670.13,669.37,0.27419978]
[1737932800727,0.29827596,670.52,669.37,0.27419978]
[1737932800728,0.9238095,670.12,669.37,0.27419978]
[1737932800931,0.9238095,670.11,669.37,0.27419978]
[1737932801528,0.9238095,670.1,669.37,0.27419978]
[1737932801727,0.9238095,670.1,669.36,1.11174428]
[1737932802133,0.92386781,670.09,669.36,1.11174428]
[1737932802637,0.92386781,670.08,669.36,1.11174428]
[1737932803230,0.92386781,670.08,669.37,0.27424826]
[1737932803435,0.92386781,670.07,669.37,0.27424826]
[1737932804433,0.92386781,670.06,669.38,0.27425503]
[1737932804633,0.92386781,670.06,669.37,0.27425503]
[1737932804833,0.92386781,670.05,669.38,0.27425503]
[1737932805134,0.92386781,670.05,669.39,0.27425503]
[1737932805337,0.92386781,670.05,669.37,0.27425503]
[1737932805528,0.92386781,670.05,669.4,0.27425503]
[1737932805932,1.4782569,670.48,669.4,0.27425503]
[1737932806132,0.2982982,670.47,669.4,0.27425503]
[1737932806536,2.40246227,670.46,669.4,0.27425503]
[1737932806736,0.2983071,670.45,669.4,0.27425503]
[1737932806937,2.70076937,670.45,669.4,0.27425503]
[1737932807134,2.70076937,670.45,669.41,0.27425503]
[1737932807333,2.70076937,670.45,669.42,0.27425503]
[1737932807539,2.40246227,670.44,669.37,0.27425503]
[1737932807738,2.40246227,670.44,669.38,0.27425503]
[1737932808039,2.40246227,670.44,669.36,1.11174428]
[1737932808040,2.40246227,670.43,669.39,0.27425503]
[1737932808340,2.40246227,670.43,669.4,0.27425503]
[1737932808638,2.40246227,670.42,669.41,0.27425503]
[1737932808838,2.40246227,670.42,669.37,0.27425503]
[1737932809138,2.40246227,670.42,669.38,0.27425503]
[1737932809346,2.40246227,670.41,669.39,0.27425503]
[1737932809641,2.40246227,670.41,669.4,0.27425503]
[1737932809834,2.40246227,670.4,669.37,0.27425503]
[1737932810033,2.40246227,670.4,669.38,0.27425503]
[1737932810234,2.40246227,670.4,669.37,0.27425503]
[1737932810434,2.40246227,670.39,669.38,0.27425503]
[1737932810634,2.40246227,670.39,669.39,0.27425503]
[1737932810834,2.40246227,670.38,669.39,0.27425503]
[1737932811042,2.40246227,670.38,669.4,0.27425503]
[1737932811240,2.40246227,670.38,669.41,0.27425503]
[1737932811434,2.40246227,670.38,669.42,0.27425503]
[1737932811636,2.40246227,670.38,669.37,0.27425503]
[1737932812140,2.40246227,670.37,669.37,0.27425503]
[1737932812735,2.40246227,670.36,669.37,0.27425503]
[1737932813246,2.40246227,670.35,669.37,0.27425503]
[1737932813744,2.40246227,670.34,669.37,0.27425503]
[1737932813944,2.40246227,670.34,669.38,0.27420465]
[1737932814243,2.40246227,670.33,669.39,0.27420465]
[1737932814438,2.40246227,670.33,669.37,0.27420465]
[1737932814739,2.40246227,670.33,669.38,0.27420465]
[1737932814947,0.92420537,670.32,669.37,0.27420465]
[1737932815248,0.92420537,670.32,669.38,0.27420465]
[1737932815443,0.92420537,670.31,669.37,0.27420465]
[1737932815745,0.92420537,670.31,669.38,0.27420465]
[1737932815938,0.92420537,670.3,669.37,0.27420465]
[1737932816139,0.92420537,670.3,669.38,0.27420465]
[1737932816342,0.92420537,670.3,669.39,0.27420465]
[1737932816542,0.92420537,670.29,669.37,0.27420465]
[1737932816742,0.92420537,670.29,669.38,0.27420465]
[1737932816941,0.92420537,670.29,669.39,0.27420465]
[1737932817143,0.92420537,670.29,669.4,0.27420465]
[1737932817341,0.92420537,670.29,669.41,0.27420465]
[1737932817539,0.92420537,670.28,669.37,0.27420465]
[1737932818239,0.92420537,670.27,669.37,0.27420465]
[1737932818946,0.92420537,670.26,669.37,0.27420465]
[1737932819547,0.92420537,670.25,669.37,0.27420465]
[1737932820148,1.4782569,670.44,669.37,0.27420465]
[1737932820744,0.92769362,670.43,669.37,0.27420465]
[1737932821147,2.40595052,670.42,669.37,0.27420465]
[1737932821646,2.40595052,670.42,669.38,0.27422055]
[1737932821843,2.40595052,670.41,669.37,0.27422055]
[1737932822042,2.40595052,670.41,669.38,0.27422055]
[1737932822245,2.40595052,670.41,669.37,0.27422055]
[1737932822444,2.40595052,670.4,669.38,0.27422055]
[1737932822644,2.40595052,670.4,669.39,0.27422055]
[1737932822850,2.40595052,670.4,669.37,0.27422055]
[1737932823047,2.40595052,670.4,669.38,0.27422055]
[1737932823343,2.40595052,670.4,669.36,1.11174428]
[1737932823344,2.40595052,670.4,669.39,0.27423268]
[1737932823549,2.40595052,670.39,669.39,0.27423268]
[1737932823749,2.40595052,670.39,669.4,0.27423268]
[1737932824045,2.40595052,670.39,669.41,0.27423268]
[1737932824245,2.40595052,670.38,669.37,0.27423268]
[1737932824451,2.40595052,670.38,669.38,0.27423268]
[1737932824645,2.40595052,670.38,669.39,0.27423268]
[1737932824949,2.40595052,670.37,669.4,0.27423268]
[1737932825150,2.40595052,670.37,669.37,0.27423268]
[1737932825346,2.40595052,670.37,669.38,0.27422357]
[1737932825547,2.40595052,670.36,669.37,0.27422357]
[1737932825949,2.40595052,670.35,669.37,0.27422357]
[1737932826751,2.40595052,670.34,669.37,0.27422357]
[1737932827051,2.40595052,670.34,669.38,0.27422357]
[1737932827253,2.40595052,670.34,669.36,1.11174428]
[1737932827254,2.40595052,670.34,669.39,0.27422357]
[1737932827551,2.40595052,670.33,669.4,0.27422357]
[1737932827752,2.40595052,670.33,669.37,0.27422357]
[1737932827955,2.40595052,670.33,669.38,0.27416708]
[1737932828155,2.40595052,670.33,669.39,0.27416708]
[1737932828353,2.40595052,670.32,669.37,0.27416708]
[1737932829352,2.40595052,670.31,669.37,0.27416708]
[1737932829853,2.40595052,670.3,669.37,0.27416708]
[1737932830355,2.40595052,670.29,669.37,0.27416708]
[1737932830752,2.40595052,670.28,669.38,0.27418232]
[1737932831055,2.40595052,670.28,669.39,0.27418232]
[1737932831252,2.40595052,670.27,669.37,0.27418232]
[1737932831451,2.40595052,670.27,669.38,0.27418232]
[1737932831650,2.40595052,670.27,669.37,0.27418232]
[1737932832158,2.40595052,670.26,669.37,0.27418232]
[1737932832552,2.40595052,670.25,669.37,0.27418232]
[1737932833252,2.40595052,670.24,669.37,0.27418232]
[1737932833955,2.40595052,670.23,669.37,0.27418232]
[1737932834954,2.40595052,670.22,669.37,0.27418232]
[1737932835558,2.40595052,670.21,669.37,0.27418232]
[1737932836656,0.92769362,670.2,669.37,0.27418232]
[1737932837054,0.92769362,670.19,669.37,0.27418232]
[1737932838061,0.92769362,670.18,669.36,1.11174428]
[1737932838260,0.92769362,670.18,669.37,0.27415978]
[1737932838962,0.92769362,670.17,669.37,0.27415978]
[1737932839461,0.92769362,670.16,669.37,0.27415978]
[1737932840862,1.49047548,670.42,669.37,0.27415978]
[1737932841359,2.42186084,670.41,669.37,0.27415978]
[1737932841965,2.42186084,670.4,669.37,0.27415978]
[1737932842567,2.42186084,670.39,669.38,0.27415978]
[1737932842866,2.42186084,670.39,669.39,0.27415978]
[1737932843064,2.42186084,670.38,669.37,0.27415978]
[1737932843269,2.42186084,670.38,669.38,0.27415978]
[1737932843465,2.42186084,670.38,669.39,0.27415978]
[1737932843669,2.42186084,670.38,669.4,0.27415424]
[1737932843869,2.42186084,670.38,669.41,0.27415424]
[1737932844169,2.42186084,670.37,669.42,0.27415424]
[1737932844364,2.42186084,670.37,669.43,0.27415424]
[1737932844565,2.42186084,670.37,669.37,0.27415424]
[1737932844870,2.42186084,670.36,669.37,0.27415424]
[1737932845370,0.93138536,670.35,669.37,0.27415424]
[1737932846463,0.2983071,670.45,669.37,0.27415424]
[1737932846663,0.93101341,670.34,669.37,0.27415424]
[1737932846971,0.93101341,670.33,669.37,0.27415424]
[1737932847167,0.93101341,670.33,669.38,0.27412403]
[1737932847368,0.93101341,670.32,669.37,0.27412403]
[1737932847766,0.2983071,670.45,669.38,0.57287453]
[1737932848066,0.2983071,670.45,669.36,1.11174428]
[1737932848067,1.08678414,671.59,669.39,0.57287007]
[1737932848269,1.08678414,671.59,669.36,1.11174428]
[1737932848270,0.29784952,671.48,669.4,0.57286561]
[1737932848470,0.29784952,671.48,669.41,0.57286114]
[1737932848667,1.55748252,671.47,669.42,0.27409059]
[1737932848867,3.97770441,671.47,669.42,0.27409059]
[1737932849065,3.97770441,671.47,669.43,0.27409059]
[1737932849271,3.97770441,671.47,669.42,0.27409059]
[1737932849474,3.97770441,671.47,669.43,0.27409059]
[1737932849672,2.42022189,671.46,669.42,0.27409059]
[1737932850070,0.29790276,671.36,669.43,0.27415903]
[1737932850267,2.42022189,671.35,669.42,0.27415903]
[1737932850473,0.29791607,671.33,669.43,0.27415903]
[1737932850668,0.29791607,671.33,669.42,0.27415903]
[1737932850870,2.42022189,671.32,669.43,0.27415903]
[1737932851075,0.29792939,671.3,669.44,0.27415903]
[1737932851274,0.29792939,671.3,669.45,0.27415903]
[1737932851573,0.29792939,671.3,669.46,0.27415903]
[1737932851773,0.29792939,671.3,669.42,0.27415903]
[1737932851974,2.42022189,671.29,669.43,0.27415903]
[1737932852175,0.2979427,671.27,669.44,0.27415903]
[1737932852576,2.42022189,671.26,669.44,0.27415903]
[1737932852772,0.29795602,671.24,669.44,0.27415903]
[1737932852973,2.42022189,671.23,669.44,0.27415903]
[1737932853173,0.29796933,671.21,669.44,0.27415903]
[1737932853376,0.29796933,671.21,669.42,0.27415903]
[1737932853677,2.42022189,671.2,669.43,0.27415903]
[1737932853977,0.29798265,671.18,669.44,0.27415903]
[1737932854175,0.29798265,671.18,669.42,0.27415903]
[1737932854378,0.29798265,671.18,669.43,0.27415903]
[1737932854580,2.42022189,671.17,669.44,0.27415903]
[1737932854782,2.42022189,671.17,669.42,0.27415903]
[1737932855082,0.29799597,671.15,669.43,0.27415903]
[1737932855379,0.29799597,671.15,669.41,0.29877055]
[1737932855380,2.42022189,671.14,669.44,0.27418915]
[1737932855573,2.42022189,671.14,669.42,0.27418915]
[1737932855776,2.42022189,671.14,669.43,0.27418915]
[1737932855977,2.42022189,671.14,669.42,0.27418915]
[1737932856274,0.29800929,671.12,669.43,0.27418915]
[1737932856579,2.42022189,671.11,669.44,0.27418915]
[1737932856782,0.29802261,671.09,669.42,0.27418915]
[1737932856974,0.29802261,671.09,669.43,0.27418915]
[1737932857173,0.29802261,671.09,669.44,0.27418915]
[1737932857378,2.42022189,671.08,669.42,0.27418915]
[1737932857680,0.29803594,671.06,669.43,0.27418915]
[1737932857981,0.29803594,671.06,669.44,0.27418915]
[1737932858182,0.29803594,671.06,669.45,0.27418915]
[1737932858481,0.29803594,671.06,669.46,0.27418915]
[1737932858681,0.29803594,671.06,669.42,0.27418915]
[1737932858882,2.42022189,671.05,669.43,0.27418915]
[1737932859083,0.29804926,671.03,669.43,0.27418915]
[1737932859284,2.42022189,671.02,669.43,0.27418915]
[1737932859876,0.29806259,671.0,669.43,0.27418915]
[1737932860281,2.42022189,670.99,669.43,0.27418915]
[1737932860577,2.42022189,670.99,669.44,0.27418915]
[1737932860783,2.42022189,670.98,669.42,0.27418915]